[Event "Late-Titled-Tuesday-Blitz-March-12-2024"]
[Site "Chess.com"]
[Date "2024.03.12"]
[Round "7"]
[White "matagordo"]
[Black "sorch29"]
[Result "0-1"]
[WhiteElo "2298"]
[BlackElo "2452"]
[TimeControl "180+1"]
[EndTime "15:18:10 PDT"]
[Termination "sorch29 won on time"]

1. d4 {[%clk 0:03:00.9]} 1... Nf6 {[%clk 0:02:59.8]} 2. Bf4 {[%clk 0:03:00.5]}
2... g6 {[%clk 0:02:59.8]} 3. Nc3 {[%clk 0:03:01]} 3... d5 {[%clk 0:02:59.4]} 4.
e3 {[%clk 0:03:01.1]} 4... Bg7 {[%clk 0:02:59.2]} 5. h4 {[%clk 0:03:01.8]} 5...
h5 {[%clk 0:02:59]} 6. Nf3 {[%clk 0:03:02]} 6... O-O {[%clk 0:02:59.3]} 7. Qd2
{[%clk 0:03:01.2]} 7... c5 {[%clk 0:02:58.7]} 8. Nb5 {[%clk 0:02:59.7]} 8... Nc6
{[%clk 0:02:45]} 9. c3 {[%clk 0:02:58.6]} 9... cxd4 {[%clk 0:02:42.9]} 10. exd4
{[%clk 0:02:58]} 10... Bf5 {[%clk 0:02:42.8]} 11. Bd3 {[%clk 0:02:49.5]} 11...
Bxd3 {[%clk 0:02:27.4]} 12. Qxd3 {[%clk 0:02:50.4]} 12... a6 {[%clk 0:02:28.2]}
13. Na3 {[%clk 0:02:49.5]} 13... b5 {[%clk 0:02:18.9]} 14. O-O {[%clk
0:02:48.8]} 14... b4 {[%clk 0:02:17.5]} 15. Nc2 {[%clk 0:02:44.5]} 15... bxc3
{[%clk 0:02:13.6]} 16. bxc3 {[%clk 0:02:45.4]} 16... Qa5 {[%clk 0:02:09]} 17.
Ne3 {[%clk 0:02:18.6]} 17... Rac8 {[%clk 0:02:03.1]} 18. c4 {[%clk 0:02:16.5]}
18... dxc4 {[%clk 0:01:58.9]} 19. Nxc4 {[%clk 0:02:17.4]} 19... Qf5 {[%clk
0:01:36.3]} 20. Qxf5 {[%clk 0:02:12.8]} 20... gxf5 {[%clk 0:01:37.2]} 21. Nb6
{[%clk 0:01:46]} 21... Rcd8 {[%clk 0:01:14.5]} 22. Bc7 {[%clk 0:01:37]} 22...
Rde8 {[%clk 0:00:53.3]} 23. Rac1 {[%clk 0:01:34]} 23... Nb4 {[%clk 0:00:50.4]}
24. Be5 {[%clk 0:01:07.3]} 24... Rd8 {[%clk 0:00:33.8]} 25. a3 {[%clk
0:00:56.2]} 25... Nbd5 {[%clk 0:00:28.7]} 26. Nxd5 {[%clk 0:00:54.3]} 26... Nxd5
{[%clk 0:00:29.6]} 27. Bxg7 {[%clk 0:00:53.3]} 27... Kxg7 {[%clk 0:00:28.4]} 28.
Rc6 {[%clk 0:00:51.9]} 28... Ra8 {[%clk 0:00:20.7]} 29. Rb1 {[%clk 0:00:50.3]}
29... Ra7 {[%clk 0:00:16.5]} 30. Rc5 {[%clk 0:00:41]} 30... Rd8 {[%clk
0:00:15.6]} 31. Ne5 {[%clk 0:00:37.8]} 31... Rd6 {[%clk 0:00:11.6]} 32. Rb8
{[%clk 0:00:29.6]} 32... e6 {[%clk 0:00:11.3]} 33. Rcc8 {[%clk 0:00:23.8]} 33...
Nf6 {[%clk 0:00:11.3]} 34. Nf3 {[%clk 0:00:24]} 34... Rdd7 {[%clk 0:00:07.9]}
35. Rb6 {[%clk 0:00:23.1]} 35... Rdc7 {[%clk 0:00:07.7]} 36. Rxc7 {[%clk
0:00:22.1]} 36... Rxc7 {[%clk 0:00:08.4]} 37. Rxa6 {[%clk 0:00:22.7]} 37... Ng4
{[%clk 0:00:08.7]} 38. Kf1 {[%clk 0:00:06.7]} 38... Rc1+ {[%clk 0:00:08.9]} 39.
Ne1 {[%clk 0:00:05.6]} 39... Rc2 {[%clk 0:00:09.8]} 40. f3 {[%clk 0:00:03.3]}
40... Ne3+ {[%clk 0:00:09]} 41. Kg1 {[%clk 0:00:03.7]} 41... Re2 {[%clk
0:00:08.4]} 42. Nd3 {[%clk 0:00:03.1]} 42... Rxg2+ {[%clk 0:00:08.2]} 43. Kh1
{[%clk 0:00:03.8]} 43... Rd2 {[%clk 0:00:07.4]} 44. Nf4 {[%clk 0:00:03.9]} 44...
Rxd4 {[%clk 0:00:05.7]} 45. Nxh5+ {[%clk 0:00:03.5]} 45... Kh6 {[%clk
0:00:05.9]} 46. Nf6 {[%clk 0:00:03.7]} 46... Rxh4+ {[%clk 0:00:06.4]} 47. Kg1
{[%clk 0:00:03.4]} 47... Rc4 {[%clk 0:00:05.9]} 48. Kf2 {[%clk 0:00:03.6]} 48...
Nc2 {[%clk 0:00:05.3]} 49. Ra7 {[%clk 0:00:03.6]} 49... Kg7 {[%clk 0:00:05.5]}
50. Ne8+ {[%clk 0:00:03.7]} 50... Kg6 {[%clk 0:00:05.6]} 51. Nd6 {[%clk
0:00:04.2]} 51... Rc3 {[%clk 0:00:05.3]} 52. Nxf7 {[%clk 0:00:04.6]} 52... Nd4
{[%clk 0:00:05.1]} 53. Ne5+ {[%clk 0:00:05]} 53... Kf6 {[%clk 0:00:05.3]} 54. f4
{[%clk 0:00:05.3]} 54... Rc2+ {[%clk 0:00:04.8]} 55. Ke3 {[%clk 0:00:05.2]}
55... Re2+ {[%clk 0:00:01.5]} 56. Kxd4 {[%clk 0:00:05.2]} 56... Re4+ {[%clk
0:00:02.2]} 57. Kd3 {[%clk 0:00:05.2]} 57... Rxf4 {[%clk 0:00:03.1]} 58. Nd7+
{[%clk 0:00:04.9]} 58... Kg5 {[%clk 0:00:03]} 59. a4 {[%clk 0:00:03.6]} 59...
Rb4 {[%clk 0:00:02.5]} 60. a5 {[%clk 0:00:03.7]} 60... Kf4 {[%clk 0:00:03]} 61.
a6 {[%clk 0:00:04]} 61... Ra4 {[%clk 0:00:03.7]} 62. Ra8 {[%clk 0:00:04.2]}
62... Ra3+ {[%clk 0:00:04.4]} 63. Kc4 {[%clk 0:00:04.3]} 63... e5 {[%clk
0:00:05.3]} 64. Kd5 {[%clk 0:00:04.2]} 64... Ra1 {[%clk 0:00:05.4]} 65. a7
{[%clk 0:00:02.1]} 65... e4 {[%clk 0:00:05.1]} 66. Nf6 {[%clk 0:00:01.2]} 66...
e3 {[%clk 0:00:05.1]} 0-1

[Event "Late-Titled-Tuesday-Blitz-March-12-2024"]
[Site "Chess.com"]
[Date "2024.03.12"]
[Round "7"]
[White "Kavyev_Ruslan"]
[Black "LeoWin2012"]
[Result "1-0"]
[WhiteElo "2496"]
[BlackElo "2198"]
[TimeControl "180+1"]
[EndTime "15:18:12 PDT"]
[Termination "Kavyev_Ruslan won by checkmate"]

1. d4 {[%clk 0:03:00.9]} 1... d6 {[%clk 0:02:59.2]} 2. Nf3 {[%clk 0:02:50]} 2...
g6 {[%clk 0:02:59.8]} 3. g3 {[%clk 0:02:48.8]} 3... Bg7 {[%clk 0:02:59.8]} 4.
Bg2 {[%clk 0:02:49.4]} 4... Nf6 {[%clk 0:02:56.1]} 5. c4 {[%clk 0:02:49.1]} 5...
O-O {[%clk 0:02:56.2]} 6. O-O {[%clk 0:02:49.3]} 6... c6 {[%clk 0:02:52.7]} 7.
Nc3 {[%clk 0:02:48.3]} 7... Bf5 {[%clk 0:02:52.6]} 8. Nd2 {[%clk 0:02:37.4]}
8... Na6 {[%clk 0:02:51.4]} 9. e4 {[%clk 0:02:37]} 9... Bd7 {[%clk 0:02:51.3]}
10. b3 {[%clk 0:02:32.5]} 10... Nb4 {[%clk 0:02:50.4]} 11. Nf3 {[%clk
0:02:24.5]} 11... Ne8 {[%clk 0:02:38.9]} 12. a3 {[%clk 0:02:22.7]} 12... Na6
{[%clk 0:02:38.6]} 13. h3 {[%clk 0:02:18.5]} 13... c5 {[%clk 0:02:30.1]} 14. Be3
{[%clk 0:02:16.7]} 14... cxd4 {[%clk 0:02:28.5]} 15. Nxd4 {[%clk 0:02:16.6]}
15... Nec7 {[%clk 0:02:26.3]} 16. Rc1 {[%clk 0:02:01.4]} 16... Ne6 {[%clk
0:02:07.8]} 17. b4 {[%clk 0:01:55.3]} 17... Nxd4 {[%clk 0:02:07.4]} 18. Bxd4
{[%clk 0:01:56.2]} 18... Nc7 {[%clk 0:02:07.3]} 19. Nd5 {[%clk 0:01:41.8]} 19...
Nxd5 {[%clk 0:02:06.1]} 20. exd5 {[%clk 0:01:41.8]} 20... a6 {[%clk 0:01:58.9]}
21. Bxg7 {[%clk 0:01:41.2]} 21... Kxg7 {[%clk 0:01:59]} 22. Qd4+ {[%clk
0:01:41.8]} 22... f6 {[%clk 0:01:59]} 23. Rfe1 {[%clk 0:01:40.4]} 23... Re8
{[%clk 0:01:54.5]} 24. c5 {[%clk 0:01:27.4]} 24... dxc5 {[%clk 0:01:54.3]} 25.
bxc5 {[%clk 0:01:23.6]} 25... Rc8 {[%clk 0:01:47.4]} 26. Qb4 {[%clk 0:00:56.3]}
26... Qc7 {[%clk 0:01:41.5]} 27. c6 {[%clk 0:00:51.8]} 27... bxc6 {[%clk
0:01:38.2]} 28. Rxe7+ {[%clk 0:00:50.5]} 28... Kg8 {[%clk 0:01:35.3]} 29. dxc6
{[%clk 0:00:39.4]} 29... Rxe7 {[%clk 0:01:34.6]} 30. Qxe7 {[%clk 0:00:38.6]}
30... Bf5 {[%clk 0:01:13]} 31. Bd5+ {[%clk 0:00:31.3]} 31... Kh8 {[%clk
0:01:10.1]} 32. Qxf6+ {[%clk 0:00:31.6]} 32... Qg7 {[%clk 0:01:10.3]} 33. Qxg7+
{[%clk 0:00:20.5]} 33... Kxg7 {[%clk 0:01:11.2]} 34. c7 {[%clk 0:00:21]} 34...
Re8 {[%clk 0:01:03.5]} 35. Bb7 {[%clk 0:00:19.9]} 35... Bc8 {[%clk 0:01:02.9]}
36. Bxc8 {[%clk 0:00:19.3]} 36... Rxc8 {[%clk 0:01:03.8]} 37. Rc6 {[%clk
0:00:18.8]} 37... Kf7 {[%clk 0:01:02.8]} 38. Rxa6 {[%clk 0:00:17]} 38... Rxc7
{[%clk 0:01:02.8]} 39. Kg2 {[%clk 0:00:17.7]} 39... Kg7 {[%clk 0:01:00.7]} 40.
g4 {[%clk 0:00:18]} 40... Rc1 {[%clk 0:01:00.6]} 41. Kg3 {[%clk 0:00:18.4]}
41... g5 {[%clk 0:00:59.4]} 42. Kg2 {[%clk 0:00:17.3]} 42... Ra1 {[%clk
0:00:57.8]} 43. a4 {[%clk 0:00:17.7]} 43... Ra2 {[%clk 0:00:57.6]} 44. a5 {[%clk
0:00:18.2]} 44... Ra3 {[%clk 0:00:57.8]} 45. Ra8 {[%clk 0:00:16.7]} 45... Ra2
{[%clk 0:00:57]} 46. a6 {[%clk 0:00:16.6]} 46... Ra3 {[%clk 0:00:57]} 47. Ra7+
{[%clk 0:00:14.6]} 47... Kg6 {[%clk 0:00:56.7]} 48. Ra8 {[%clk 0:00:13.5]} 48...
Kg7 {[%clk 0:00:56.9]} 49. Kh2 {[%clk 0:00:12.4]} 49... Ra2 {[%clk 0:00:55.8]}
50. Kg3 {[%clk 0:00:13]} 50... Ra3+ {[%clk 0:00:56.3]} 51. f3 {[%clk 0:00:12.7]}
51... Kg6 {[%clk 0:00:56.3]} 52. Kf2 {[%clk 0:00:12.5]} 52... Kg7 {[%clk
0:00:55.5]} 53. Ke2 {[%clk 0:00:12.5]} 53... Ra2+ {[%clk 0:00:51.2]} 54. Kd3
{[%clk 0:00:11.9]} 54... Rh2 {[%clk 0:00:51.1]} 55. a7 {[%clk 0:00:10.4]} 55...
Ra2 {[%clk 0:00:50.8]} 56. Kc4 {[%clk 0:00:09.7]} 56... Ra3 {[%clk 0:00:49]} 57.
Kb4 {[%clk 0:00:09.5]} 57... Ra1 {[%clk 0:00:48.9]} 58. Kb5 {[%clk 0:00:08]}
58... h6 {[%clk 0:00:48.8]} 59. Kc6 {[%clk 0:00:07.3]} 59... Rc1+ {[%clk
0:00:48.8]} 60. Kd5 {[%clk 0:00:07.7]} 60... Rd1+ {[%clk 0:00:49]} 61. Ke4
{[%clk 0:00:08.3]} 61... Re1+ {[%clk 0:00:47.5]} 62. Kf5 {[%clk 0:00:08.5]}
62... Ra1 {[%clk 0:00:47.9]} 63. Ke4 {[%clk 0:00:04.9]} 63... Ra4+ {[%clk
0:00:47.8]} 64. Kd3 {[%clk 0:00:05.2]} 64... Ra3+ {[%clk 0:00:48.2]} 65. Kc4
{[%clk 0:00:05.8]} 65... Ra1 {[%clk 0:00:48.3]} 66. Kb3 {[%clk 0:00:06.3]} 66...
Rb1+ {[%clk 0:00:48.6]} 67. Ka2 {[%clk 0:00:06.1]} 67... Rb6 {[%clk 0:00:47.9]}
68. Rg8+ {[%clk 0:00:05.8]} 68... Kxg8 {[%clk 0:00:45.7]} 69. a8=Q+ {[%clk
0:00:06.2]} 69... Kg7 {[%clk 0:00:46.6]} 70. Qe4 {[%clk 0:00:06]} 70... Ra6+
{[%clk 0:00:46.3]} 71. Kb3 {[%clk 0:00:05.7]} 71... Rb6+ {[%clk 0:00:46.8]} 72.
Kc3 {[%clk 0:00:06.3]} 72... Rf6 {[%clk 0:00:46.6]} 73. Kd3 {[%clk 0:00:06.9]}
73... Rd6+ {[%clk 0:00:45.7]} 74. Ke3 {[%clk 0:00:07.4]} 74... Rf6 {[%clk
0:00:44.8]} 75. Kf2 {[%clk 0:00:08]} 75... Rf7 {[%clk 0:00:44.4]} 76. Kg3 {[%clk
0:00:08.9]} 76... Rf6 {[%clk 0:00:44.8]} 77. Qe5 {[%clk 0:00:09.1]} 77... Kg6
{[%clk 0:00:44.8]} 78. h4 {[%clk 0:00:08.9]} 78... gxh4+ {[%clk 0:00:44.2]} 79.
Kxh4 {[%clk 0:00:09.5]} 79... Rxf3 {[%clk 0:00:44.5]} 80. Qe4+ {[%clk
0:00:09.9]} 80... Kg7 {[%clk 0:00:43]} 81. Qxf3 {[%clk 0:00:10.5]} 81... h5
{[%clk 0:00:43.5]} 82. Kxh5 {[%clk 0:00:10.4]} 82... Kg8 {[%clk 0:00:43.6]} 83.
Qg3 {[%clk 0:00:09.2]} 83... Kh8 {[%clk 0:00:43.8]} 84. g5 {[%clk 0:00:10.1]}
84... Kg7 {[%clk 0:00:43.9]} 85. g6 {[%clk 0:00:10.8]} 85... Kg8 {[%clk
0:00:44.6]} 86. Kg5 {[%clk 0:00:11.3]} 86... Kg7 {[%clk 0:00:45]} 87. Qh4 {[%clk
0:00:11.8]} 87... Kf8 {[%clk 0:00:45.6]} 88. Qh8+ {[%clk 0:00:12]} 88... Ke7
{[%clk 0:00:45.7]} 89. Qf6+ {[%clk 0:00:12.1]} 89... Kd7 {[%clk 0:00:45.4]} 90.
g7 {[%clk 0:00:12.3]} 90... Kc7 {[%clk 0:00:45.4]} 91. g8=Q {[%clk 0:00:12.2]}
91... Kd7 {[%clk 0:00:46.3]} 92. Qgg7+ {[%clk 0:00:12.8]} 92... Ke8 {[%clk
0:00:46.2]} 93. Qff8# {[%clk 0:00:13.7]} 1-0

[Event "Late-Titled-Tuesday-Blitz-March-12-2024"]
[Site "Chess.com"]
[Date "2024.03.12"]
[Round "7"]
[White "bazar-wokzal"]
[Black "Alphafischer2019"]
[Result "0-1"]
[WhiteElo "2569"]
[BlackElo "2749"]
[TimeControl "180+1"]
[EndTime "15:18:40 PDT"]
[Termination "Alphafischer2019 won by resignation"]

1. e4 {[%clk 0:03:00.9]} 1... c5 {[%clk 0:02:58.8]} 2. c3 {[%clk 0:03:00.7]}
2... Nf6 {[%clk 0:02:57.7]} 3. e5 {[%clk 0:03:00.6]} 3... Nd5 {[%clk 0:02:58.4]}
4. d4 {[%clk 0:03:01.4]} 4... cxd4 {[%clk 0:02:58.7]} 5. cxd4 {[%clk 0:03:02.3]}
5... Nc6 {[%clk 0:02:55.4]} 6. Nc3 {[%clk 0:03:01.7]} 6... Nxc3 {[%clk
0:02:54.4]} 7. bxc3 {[%clk 0:03:02.6]} 7... d6 {[%clk 0:02:54.8]} 8. f4 {[%clk
0:03:02.4]} 8... e6 {[%clk 0:02:46.5]} 9. Nf3 {[%clk 0:03:01.9]} 9... g6 {[%clk
0:02:42.3]} 10. Bd3 {[%clk 0:03:01.3]} 10... Bg7 {[%clk 0:02:39.7]} 11. O-O
{[%clk 0:03:00.5]} 11... O-O {[%clk 0:02:38.5]} 12. Ba3 {[%clk 0:02:56.1]} 12...
dxe5 {[%clk 0:02:33.3]} 13. Bxf8 {[%clk 0:02:55.1]} 13... exd4 {[%clk
0:02:18.8]} 14. Bxg7 {[%clk 0:02:53.2]} 14... Kxg7 {[%clk 0:02:19.7]} 15. cxd4
{[%clk 0:02:46.4]} 15... Nxd4 {[%clk 0:02:20.3]} 16. Nxd4 {[%clk 0:02:46.2]}
16... Qxd4+ {[%clk 0:02:18.8]} 17. Kh1 {[%clk 0:02:46.5]} 17... b6 {[%clk
0:02:14]} 18. Qf3 {[%clk 0:02:42]} 18... Rb8 {[%clk 0:02:13.7]} 19. Rad1 {[%clk
0:02:41.1]} 19... Bb7 {[%clk 0:02:13.8]} 20. Qf2 {[%clk 0:02:38.6]} 20... Qa4
{[%clk 0:02:10.9]} 21. Kg1 {[%clk 0:02:33.6]} 21... Bd5 {[%clk 0:02:08.8]} 22.
Qb2+ {[%clk 0:02:24]} 22... Kg8 {[%clk 0:02:08.6]} 23. Rf2 {[%clk 0:02:19]}
23... Qxd1+ {[%clk 0:02:06.9]} 24. Bf1 {[%clk 0:02:17.2]} 24... Rc8 {[%clk
0:02:05.7]} 25. h4 {[%clk 0:02:08.9]} 25... Qc1 {[%clk 0:02:04.9]} 26. Qf6
{[%clk 0:02:04]} 26... Qc3 {[%clk 0:02:04.5]} 27. Qxc3 {[%clk 0:01:10.4]} 27...
Rxc3 {[%clk 0:02:03.7]} 28. a4 {[%clk 0:01:10.4]} 28... Kg7 {[%clk 0:02:02.6]}
29. Bb5 {[%clk 0:01:09.5]} 29... h5 {[%clk 0:01:59.6]} 30. Kh2 {[%clk 0:01:09]}
30... Bc6 {[%clk 0:01:58.6]} 31. Rb2 {[%clk 0:01:01.6]} 31... Bxb5 {[%clk
0:01:57.4]} 32. axb5 {[%clk 0:01:01.5]} 32... Rc4 {[%clk 0:01:56.6]} 33. g3
{[%clk 0:01:00.7]} 33... Kf6 {[%clk 0:01:57]} 34. Ra2 {[%clk 0:00:59.5]} 34...
Rb4 {[%clk 0:01:57.1]} 35. Rxa7 {[%clk 0:00:59.1]} 35... Rxb5 {[%clk 0:01:57.8]}
36. Kg2 {[%clk 0:00:57.1]} 36... Rb2+ {[%clk 0:01:58.4]} 37. Kf3 {[%clk
0:00:57.2]} 37... b5 {[%clk 0:01:59.3]} 38. Rb7 {[%clk 0:00:57]} 38... b4 {[%clk
0:01:59.7]} 39. Ke3 {[%clk 0:00:57.2]} 39... b3 {[%clk 0:01:58.7]} 40. Kf3
{[%clk 0:00:57.7]} 40... Rb1 {[%clk 0:01:58.9]} 41. Kg2 {[%clk 0:00:57.8]} 41...
b2 {[%clk 0:01:56]} 42. Kh2 {[%clk 0:00:57.9]} 42... e5 {[%clk 0:01:54.7]} 43.
fxe5+ {[%clk 0:00:55.1]} 43... Kxe5 {[%clk 0:01:55.6]} 44. Kg2 {[%clk
0:00:55.1]} 44... f5 {[%clk 0:01:49]} 45. Rb4 {[%clk 0:00:51.2]} 45... Kd5
{[%clk 0:01:43]} 46. Kh2 {[%clk 0:00:51]} 46... Kc5 {[%clk 0:01:43]} 47. Rb8
{[%clk 0:00:50.8]} 47... Kd4 {[%clk 0:01:43.5]} 48. Kg2 {[%clk 0:00:50]} 48...
Ke5 {[%clk 0:01:40.7]} 49. Rb4 {[%clk 0:00:49]} 49... f4 {[%clk 0:01:37.9]} 50.
gxf4+ {[%clk 0:00:35.7]} 50... Kf5 {[%clk 0:01:37.9]} 51. Kh2 {[%clk 0:00:35.6]}
51... Kg4 {[%clk 0:01:34]} 52. Kg2 {[%clk 0:00:33.5]} 52... Kf5 {[%clk
0:01:13.5]} 53. Kh2 {[%clk 0:00:32.8]} 53... Ke6 {[%clk 0:01:13.8]} 54. Kg2
{[%clk 0:00:32]} 54... Kf6 {[%clk 0:01:14.4]} 55. Rb5 {[%clk 0:00:31.3]} 55...
Ke6 {[%clk 0:01:12.8]} 56. Kh2 {[%clk 0:00:31.3]} 56... Kd6 {[%clk 0:01:11.6]}
57. Kg2 {[%clk 0:00:31.2]} 57... Kc6 {[%clk 0:01:12.2]} 58. Rb8 {[%clk
0:00:30.9]} 58... Kd5 {[%clk 0:01:12.4]} 59. Rb4 {[%clk 0:00:30.5]} 59... Kc5
{[%clk 0:01:13.1]} 60. Rb8 {[%clk 0:00:30]} 60... Kd4 {[%clk 0:01:13.7]} 61. Kh2
{[%clk 0:00:24.8]} 61... Ke3 {[%clk 0:01:13.8]} 62. Rb4 {[%clk 0:00:24.1]} 62...
Kf3 {[%clk 0:01:13.6]} 63. Rb8 {[%clk 0:00:16.4]} 63... Kxf4 {[%clk 0:01:12.5]}
64. Kg2 {[%clk 0:00:16.9]} 64... Kf5 {[%clk 0:00:52.9]} 65. Rb5+ {[%clk
0:00:16.6]} 65... Ke6 {[%clk 0:00:52.8]} 66. Rb6+ {[%clk 0:00:16.9]} 66... Kd5
{[%clk 0:00:53.3]} 67. Rb5+ {[%clk 0:00:17.1]} 67... Kc4 {[%clk 0:00:53.4]} 68.
Rb8 {[%clk 0:00:17.4]} 68... Kc3 {[%clk 0:00:53.2]} 69. Rc8+ {[%clk 0:00:17.5]}
69... Kd2 {[%clk 0:00:53.2]} 70. Rd8+ {[%clk 0:00:17.7]} 70... Ke1 {[%clk
0:00:52.8]} 71. Rb8 {[%clk 0:00:16.7]} 71... Ke2 {[%clk 0:00:52.4]} 72. Re8+
{[%clk 0:00:16]} 72... Kd3 {[%clk 0:00:52.8]} 73. Rd8+ {[%clk 0:00:16.5]} 73...
Ke4 {[%clk 0:00:51.8]} 74. Rb8 {[%clk 0:00:16]} 74... Kf5 {[%clk 0:00:50]} 75.
Rb5+ {[%clk 0:00:15.4]} 75... Ke6 {[%clk 0:00:48.7]} 76. Rb6+ {[%clk 0:00:15.6]}
76... Kf7 {[%clk 0:00:48]} 77. Rb7+ {[%clk 0:00:15.8]} 77... Kf6 {[%clk
0:00:48.7]} 78. Rb6+ {[%clk 0:00:16]} 78... Ke5 {[%clk 0:00:46]} 79. Rb5+ {[%clk
0:00:16.2]} 79... Ke4 {[%clk 0:00:46.7]} 80. Rb4+ {[%clk 0:00:15.3]} 80... Kd3
{[%clk 0:00:47.4]} 81. Rb8 {[%clk 0:00:14.1]} 81... Rc1 {[%clk 0:00:47.3]} 82.
Rxb2 {[%clk 0:00:13.8]} 82... Rc2+ {[%clk 0:00:30.1]} 83. Rxc2 {[%clk
0:00:13.7]} 83... Kxc2 {[%clk 0:00:31]} 84. Kf3 {[%clk 0:00:14.2]} 84... Kd3
{[%clk 0:00:31.7]} 85. Kf4 {[%clk 0:00:14.7]} 85... Ke2 {[%clk 0:00:32.4]} 86.
Kg5 {[%clk 0:00:15]} 86... Kf3 {[%clk 0:00:33.1]} 87. Kxg6 {[%clk 0:00:10]}
87... Kg4 {[%clk 0:00:34]} 88. Kf6 {[%clk 0:00:10.4]} 88... Kxh4 {[%clk
0:00:34.7]} 89. Kf5 {[%clk 0:00:10.9]} 89... Kg3 {[%clk 0:00:35.2]} 90. Ke4
{[%clk 0:00:11.4]} 90... h4 {[%clk 0:00:35.8]} 91. Ke3 {[%clk 0:00:12]} 91... h3
{[%clk 0:00:36.6]} 92. Ke2 {[%clk 0:00:12.6]} 92... h2 {[%clk 0:00:36.9]} 0-1

[Event "Late-Titled-Tuesday-Blitz-March-12-2024"]
[Site "Chess.com"]
[Date "2024.03.12"]
[Round "7"]
[White "Andrei_Skvortsov"]
[Black "betta2004"]
[Result "1-0"]
[WhiteElo "2748"]
[BlackElo "2566"]
[TimeControl "180+1"]
[EndTime "15:18:44 PDT"]
[Termination "Andrei_Skvortsov won by checkmate"]

1. c4 {[%clk 0:03:00.9]} 1... g6 {[%clk 0:02:59]} 2. g3 {[%clk 0:02:58.7]} 2...
Bg7 {[%clk 0:02:58.5]} 3. Bg2 {[%clk 0:02:59.4]} 3... c5 {[%clk 0:02:58.1]} 4.
Nf3 {[%clk 0:02:59]} 4... Nc6 {[%clk 0:02:58.7]} 5. O-O {[%clk 0:02:59.4]} 5...
d6 {[%clk 0:02:59.3]} 6. e3 {[%clk 0:02:58.8]} 6... e6 {[%clk 0:03:00.2]} 7. d4
{[%clk 0:02:59.1]} 7... cxd4 {[%clk 0:02:58.2]} 8. exd4 {[%clk 0:02:59.1]} 8...
Nge7 {[%clk 0:02:58.8]} 9. Nc3 {[%clk 0:02:58.8]} 9... O-O {[%clk 0:02:59.1]}
10. d5 {[%clk 0:02:57.2]} 10... Na5 {[%clk 0:02:57.9]} 11. Qe2 {[%clk
0:02:47.9]} 11... e5 {[%clk 0:02:53.2]} 12. Bd2 {[%clk 0:02:23.8]} 12... b6
{[%clk 0:02:51.7]} 13. b4 {[%clk 0:02:23.3]} 13... Nb7 {[%clk 0:02:52.1]} 14.
Rab1 {[%clk 0:02:21.3]} 14... h6 {[%clk 0:02:49]} 15. Ne1 {[%clk 0:02:16.1]}
15... f5 {[%clk 0:02:48.8]} 16. f4 {[%clk 0:02:14.1]} 16... e4 {[%clk
0:02:48.9]} 17. Nc2 {[%clk 0:02:14]} 17... Bd7 {[%clk 0:02:45.7]} 18. a4 {[%clk
0:02:11.8]} 18... Qc7 {[%clk 0:02:45.4]} 19. Na3 {[%clk 0:02:06.2]} 19... a6
{[%clk 0:02:43.3]} 20. Kh1 {[%clk 0:02:05.6]} 20... Rac8 {[%clk 0:02:42.2]} 21.
Rfc1 {[%clk 0:02:04]} 21... a5 {[%clk 0:02:36.5]} 22. Nab5 {[%clk 0:02:02.2]}
22... Qb8 {[%clk 0:02:35.5]} 23. Be3 {[%clk 0:02:01.1]} 23... axb4 {[%clk
0:02:35.2]} 24. Rxb4 {[%clk 0:02:00.9]} 24... Nc5 {[%clk 0:02:35.1]} 25. Rcb1
{[%clk 0:01:33.3]} 25... Nd3 {[%clk 0:02:26.8]} 26. R4b3 {[%clk 0:01:33.6]}
26... Nc5 {[%clk 0:02:25.3]} 27. Ra3 {[%clk 0:01:32.7]} 27... Kh7 {[%clk
0:01:49.2]} 28. Qa2 {[%clk 0:01:32.1]} 28... Nd3 {[%clk 0:01:47.3]} 29. Bf1
{[%clk 0:01:27.3]} 29... Rfe8 {[%clk 0:01:40.7]} 30. a5 {[%clk 0:01:19.5]} 30...
bxa5 {[%clk 0:01:37.8]} 31. Rxa5 {[%clk 0:01:20.4]} 31... Bxb5 {[%clk
0:01:36.1]} 32. Nxb5 {[%clk 0:01:17.5]} 32... Nc5 {[%clk 0:01:19.7]} 33. h4
{[%clk 0:01:04.4]} 33... Qb6 {[%clk 0:01:08.5]} 34. Na7 {[%clk 0:00:59.2]} 34...
Qc7 {[%clk 0:00:57.8]} 35. Nxc8 {[%clk 0:00:58.8]} 35... Nxc8 {[%clk 0:00:58.7]}
36. Ra8 {[%clk 0:00:53.2]} 36... Re7 {[%clk 0:00:51.3]} 37. Qa5 {[%clk
0:00:44.5]} 37... Qxa5 {[%clk 0:00:47.6]} 38. Rxa5 {[%clk 0:00:45.4]} 38... Rc7
{[%clk 0:00:48.2]} 39. Rb8 {[%clk 0:00:38.2]} 39... Nd3 {[%clk 0:00:45.7]} 40.
Raa8 {[%clk 0:00:37.9]} 40... Ne7 {[%clk 0:00:45.1]} 41. Re8 {[%clk 0:00:29.2]}
41... Bf6 {[%clk 0:00:40.2]} 42. Ra7 {[%clk 0:00:26.1]} 42... Rxa7 {[%clk
0:00:32.4]} 43. Bxa7 {[%clk 0:00:27]} 43... Kg7 {[%clk 0:00:24.8]} 44. Rb8
{[%clk 0:00:18.5]} 44... Kf7 {[%clk 0:00:24]} 45. Rb3 {[%clk 0:00:17.2]} 45...
Ne1 {[%clk 0:00:15.7]} 46. Bb8 {[%clk 0:00:13.4]} 46... Nf3 {[%clk 0:00:09.6]}
47. Rb7 {[%clk 0:00:07.6]} 47... Nd2 {[%clk 0:00:06.6]} 48. Be2 {[%clk
0:00:08.1]} 48... Ke8 {[%clk 0:00:05.6]} 49. Bxd6 {[%clk 0:00:08.4]} 49... Nc8
{[%clk 0:00:06.2]} 50. Be5 {[%clk 0:00:08.7]} 50... Be7 {[%clk 0:00:05.7]} 51.
Rb8 {[%clk 0:00:09.1]} 51... Kd7 {[%clk 0:00:05.6]} 52. Rb7+ {[%clk 0:00:09.8]}
52... Ke8 {[%clk 0:00:05.5]} 53. Rc7 {[%clk 0:00:09.9]} 53... Nd6 {[%clk
0:00:05.6]} 54. Rc6 {[%clk 0:00:09.7]} 54... Kd7 {[%clk 0:00:05.8]} 55. c5
{[%clk 0:00:09.8]} 55... N6c4 {[%clk 0:00:05.5]} 56. Rxg6 {[%clk 0:00:06.9]}
56... Bxc5 {[%clk 0:00:04.9]} 57. Rg7+ {[%clk 0:00:07.4]} 57... Kc8 {[%clk
0:00:04.9]} 58. Rg8+ {[%clk 0:00:06.3]} 58... Kd7 {[%clk 0:00:05.2]} 59. Rg7+
{[%clk 0:00:06.5]} 59... Kd8 {[%clk 0:00:05.7]} 60. Rg6 {[%clk 0:00:05.8]} 60...
Kd7 {[%clk 0:00:05.5]} 61. Rc6 {[%clk 0:00:05.9]} 61... Nxe5 {[%clk 0:00:04.9]}
62. fxe5 {[%clk 0:00:05.2]} 62... Bd4 {[%clk 0:00:05.2]} 63. e6+ {[%clk
0:00:05.4]} 63... Kd8 {[%clk 0:00:05.8]} 64. d6 {[%clk 0:00:05.2]} 64... Bf6
{[%clk 0:00:04.6]} 65. e7+ {[%clk 0:00:05.5]} 65... Kd7 {[%clk 0:00:05]} 66.
Rc7+ {[%clk 0:00:06]} 66... Kxd6 {[%clk 0:00:03.5]} 67. e8=Q {[%clk 0:00:06.4]}
67... Kxc7 {[%clk 0:00:04.1]} 68. Qf7+ {[%clk 0:00:07.1]} 68... Be7 {[%clk
0:00:04]} 69. Qxe7+ {[%clk 0:00:07.4]} 69... Kc6 {[%clk 0:00:04.9]} 70. Qh7
{[%clk 0:00:08.1]} 70... Kd5 {[%clk 0:00:04.4]} 71. Qxf5+ {[%clk 0:00:08.4]}
71... Kd4 {[%clk 0:00:05.3]} 72. Qd7+ {[%clk 0:00:08.7]} 72... Ke3 {[%clk
0:00:05.6]} 73. Bh5 {[%clk 0:00:08.3]} 73... Nf1 {[%clk 0:00:05.7]} 74. Qa7+
{[%clk 0:00:08.8]} 74... Kd2 {[%clk 0:00:04.8]} 75. Kg2 {[%clk 0:00:09.7]} 75...
Ne3+ {[%clk 0:00:04.6]} 76. Kh3 {[%clk 0:00:10.5]} 76... Nd1 {[%clk 0:00:04.6]}
77. Qd7+ {[%clk 0:00:11.4]} 77... Ke3 {[%clk 0:00:04.5]} 78. Qxd1 {[%clk
0:00:12.3]} 78... Kf2 {[%clk 0:00:05.4]} 79. Qe2+ {[%clk 0:00:12.2]} 79... Kg1
{[%clk 0:00:05.8]} 80. Qg2# {[%clk 0:00:13.1]} 1-0